bitfinex/quotes_ETHUSD_20220227
["timestamp","ask_amount","ask_price","bid_price","bid_amount"]
[1645953161226,1.213,2747.4,2746.6,1.10644773]
[1645953161425,1.213,2747.4,2746.7,0.525]
[1645953161838,1.213,2747.4,2746.7,0.1029]
[1645953167346,4.7011,2747.5,2746.7,12.58866172]
[1645953167541,4.7011,2747.5,2746.7,12.7687428]
[1645953167738,4.7011,2747.5,2746.7,14.33345127]
[1645953167942,4.7011,2747.5,2747.0,0.910078]
[1645953168141,1.2043,2747.8,2747.1,0.525]
[1645953168543,1.20526,2747.8,2747.1,0.525]
[1645953168945,1.27590203,2747.5,2747.1,0.525]
[1645953169544,1.27590203,2747.5,2746.8,1.435078]
[1645953169949,5.06956,2747.8,2746.8,1.435078]
[1645953169950,1.25322796,2747.0,2746.8,1.435078]
[1645953170146,1.25322796,2747.0,2746.8,0.525]
[1645953170784,1.25322796,2747.0,2746.7,0.910078]
[1645953170981,0.3643,2747.7,2746.6,0.910078]
[1645953171179,0.3643,2747.7,2746.7,0.910078]
[1645953171380,9.85086,2747.8,2746.7,0.910078]
[1645953171381,3.5,2747.6,2746.7,0.910078]
[1645953171578,4.85086,2747.8,2746.7,0.910078]
[1645953171781,1.53796363,2747.7,2746.7,0.910078]
[1645953171982,1.90226363,2747.7,2746.7,0.910078]
[1645953172184,1.40080684,2747.4,2746.7,0.910078]
[1645953172383,0.3643,2747.7,2746.7,0.910078]
[1645953172587,0.3643,2747.7,2746.7,1.435078]
[1645953173383,0.5099,2747.7,2746.7,1.435078]
[1645953173582,0.5099,2747.7,2746.8,0.910078]
[1645953173785,0.5099,2747.7,2746.8,1.435078]
[1645953173984,1.30602603,2747.6,2746.8,1.435078]
[1645953176033,1.30602603,2747.6,2746.8,0.525]
[1645953176635,0.3643,2747.5,2746.7,0.910078]
[1645953177235,1.44056461,2747.1,2746.7,0.910078]
[1645953177437,0.3643,2747.5,2746.6,1.210078]
[1645953177638,0.3643,2747.5,2746.6,0.910078]
[1645953177842,0.3643,2747.5,2746.5,0.825]
[1645953177843,0.3643,2747.5,2746.7,0.910078]
[1645953179082,1.19359168,2747.3,2746.7,0.910078]
[1645953179482,0.5099,2747.7,2746.7,0.910078]
[1645953179686,5.03797854,2747.6,2746.7,0.910078]
[1645953179884,3.5,2747.6,2746.7,0.910078]
[1645953180288,3.8643,2747.6,2746.7,0.910078]
[1645953181719,1.40531165,2747.4,2746.7,0.910078]
[1645953182722,5.21516,2747.8,2746.7,0.910078]
[1645953182923,1.53798831,2747.7,2746.8,0.910078]
[1645953183525,1.53798831,2747.7,2746.8,1.210078]
[1645953183724,1.53798831,2747.7,2746.9,2.05455867]
[1645953183924,1.52829031,2747.7,2746.9,2.05455867]
[1645953184126,1.20526,2747.8,2747.1,0.910078]
[1645953184324,1.20526,2747.8,2747.1,0.525]
[1645953184925,1.20526,2747.8,2747.1,1.435078]
[1645953185325,1.20526,2747.8,2747.1,0.525]
[1645953185569,1.20526,2747.8,2747.1,1.735078]
[1645953186369,1.20526,2747.8,2747.2,0.910078]
[1645953186568,1.20526,2747.8,2747.3,0.525]
[1645953186775,1.6891,2747.9,2747.3,0.525]
[1645953187774,1.16102418,2747.7,2747.3,0.525]
[1645953188976,1.6891,2747.9,2747.3,0.525]
[1645953189731,5.5534,2747.9,2747.3,0.525]
[1645953190132,5.5534,2747.9,2747.0,0.3]
[1645953190133,5.5534,2747.9,2747.0,1.735078]
[1645953190334,0.00096,2747.8,2747.0,0.525]
[1645953190735,1.31303647,2747.6,2747.0,1.435078]
[1645953191136,0.00096,2747.8,2747.0,1.435078]
[1645953191938,0.36526,2747.8,2747.0,0.979778]
[1645953192343,1.73071841,2747.8,2747.0,0.979778]
[1645953192541,0.00096,2747.8,2747.0,0.979778]
[1645953192852,0.00096,2747.8,2747.4,0.910078]
[1645953193085,1.6891,2747.9,2747.5,0.525]
[1645953193382,3.18766,2748.1,2747.5,0.525]
[1645953193585,1.15886,2748.2,2747.5,1.80950355]
[1645953193781,1.1579,2748.2,2747.5,1.80950355]
[1645953194888,1.1579,2748.2,2747.5,1.35420355]
[1645953195889,0.00096,2748.3,2747.6,0.910078]
[1645953196094,0.00096,2748.5,2747.9,11.12]
[1645953196287,0.8876053,2748.7,2747.9,11.12]
[1645953196288,0.8876053,2748.7,2748.0,0.525]
[1645953196489,0.8876053,2748.7,2748.0,1.735078]
[1645953196924,0.8876053,2748.7,2748.2,1.07303029]
[1645953197125,0.8876053,2748.7,2748.3,0.525]
[1645953197727,0.8876053,2748.7,2748.3,11.645]
[1645953198029,0.8876053,2748.7,2748.3,11.1897]
[1645953198225,0.8876053,2748.7,2748.3,1.0697]
[1645953198428,0.8876053,2748.7,2748.3,0.0697]
[1645953198926,0.8876053,2748.7,2748.3,0.3697]
[1645953199125,0.8876053,2748.7,2748.3,0.0697]
[1645953199327,1.23283028,2748.4,2748.3,0.0697]
[1645953199525,1.23283028,2748.4,2747.9,0.525]
[1645953199726,1.23283028,2748.4,2747.7,0.3]
[1645953199928,1.23283028,2748.4,2747.6,0.825]
[1645953200227,1.23283028,2748.4,2747.6,0.525]
[1645953200886,1.23283028,2748.4,2747.6,0.0697]
[1645953202687,1.23283028,2748.4,2747.6,0.3697]
[1645953204929,0.00096,2748.6,2747.6,11.4897]
[1645953205130,1.53846757,2748.6,2747.6,11.4897]
[1645953205331,1.53846757,2748.6,2747.6,12.4897]
[1645953205731,1.53846757,2748.6,2747.6,1.3697]
[1645953205932,1.53846757,2748.6,2747.6,11.4897]
[1645953206131,2.82861788,2748.6,2747.6,12.88000441]
[1645953206332,1.53750757,2748.5,2747.6,13.88000441]
[1645953206539,0.00096,2748.6,2748.0,11.12]
[1645953206734,0.8876053,2748.7,2748.0,1.525]
[1645953207238,0.8876053,2748.7,2748.2,1.04434356]
[1645953207537,0.8876053,2748.7,2748.2,1.56934356]
[1645953207737,0.8876053,2748.7,2748.2,1.86934356]
[1645953207997,0.8876053,2748.7,2748.2,12.98603656]
[1645953208183,0.8876053,2748.7,2748.2,13.98603656]
[1645953209583,0.8876053,2748.7,2748.2,2.86603656]
[1645953209783,0.8876053,2748.7,2748.2,1.86603656]
[1645953209984,0.8876053,2748.7,2748.2,13.98603656]
[1645953210584,0.8876053,2748.7,2748.2,1.821693]
[1645953210786,0.8876053,2748.7,2748.2,0.821693]
[1645953211185,0.8876053,2748.7,2748.2,0.525]
[1645953211388,0.8876053,2748.7,2748.2,0.825]
[1645953212949,0.8876053,2748.7,2748.3,0.84299876]
[1645953213149,0.8876053,2748.7,2748.5,0.84299876]
[1645953213349,0.75378878,2748.7,2748.6,0.0768664]
[1645953214360,0.75378878,2748.7,2748.6,4.41986516]
[1645953214759,0.75378878,2748.7,2748.6,2.44486516]
[1645953215158,0.75378878,2748.7,2748.6,1.44486516]
[1645953216791,0.00096,2749.0,2748.7,10.1]
[1645953216994,0.2,2750.2,2748.9,6.57470717]
[1645953217190,0.2,2750.2,2749.2,7.24222092]
[1645953217391,0.2,2750.2,2749.3,1.44486516]
[1645953217587,0.2,2750.2,2749.4,0.0768664]
[1645953217787,0.2,2750.2,2749.5,1.36799876]
[1645953217986,0.2,2750.2,2749.6,0.91986516]
[1645953218186,0.17256208,2751.0,2749.7,0.0768664]
[1645953218387,0.1454,2750.8,2749.8,0.84299876]
[1645953218587,1.84871792,2750.7,2750.0,0.84299876]
[1645953218786,1.32041634,2750.4,2750.0,0.84299876]
[1645953219823,1.32041634,2750.4,2750.1,0.84299876]
[1645953220029,0.1454,2751.1,2749.8,0.3]
[1645953220030,0.0954,2751.1,2750.3,0.84299876]
[1645953220223,1.505,2751.2,2750.3,0.84299876]
[1645953220224,1.48343879,2751.0,2750.3,0.84299876]
[1645953220426,0.1454,2751.6,2750.8,11.12]
[1645953220627,0.00096,2751.1,2750.9,5.23229876]
[1645953220826,1.48198956,2751.5,2751.2,0.84299876]
[1645953220827,1.48198956,2751.4,2751.2,0.84299876]
[1645953221031,0.91783376,2752.3,2751.1,0.3643]
[1645953221032,0.00096,2752.0,2751.3,1.36799876]
[1645953221226,10.2098,2752.8,2751.6,0.84299876]
[1645953221227,0.91783376,2752.8,2751.6,0.84299876]
[1645953221433,0.13849664,2753.2,2751.6,0.84299876]
[1645953221434,0.12637088,2753.2,2752.0,5.0]
[1645953221635,0.05,2753.9,2752.8,12.32729876]
[1645953221828,0.05,2753.9,2753.0,12.32729876]
[1645953221829,6e-05,2753.1,2753.0,12.32729876]
[1645953222029,1.37557883,2754.6,2753.0,12.32729876]
[1645953222030,1.08168392,2753.7,2753.2,0.84299876]
[1645953222234,1.70290542,2754.9,2753.2,0.84299876]
[1645953222235,6.73155796,2754.8,2753.9,0.79299876]
[1645953222531,37.39752638,2755.0,2753.3,4.025]
[1645953222532,37.39752638,2755.0,2754.6,6.562]
[1645953222745,37.39752638,2755.0,2754.7,1.31799876]
[1645953222998,5.0,2754.8,2753.7,0.25]
[1645953223201,5.0,2754.2,2753.5,1.0]
[1645953223400,4.88402901,2754.7,2753.4,1.0]
[1645953223401,8.45,2754.1,2753.4,1.0]
[1645953223595,1.5711155,2754.7,2753.0,3.75]
[1645953223596,0.01236277,2754.0,2753.0,3.75]
[1645953223795,0.01236277,2754.0,2752.5,0.96644727]
[1645953223796,0.00096,2754.0,2752.5,0.96644727]
[1645953223996,5.475,2753.9,2752.6,0.15245298]
[1645953224195,1.34326373,2752.9,2752.6,0.15245298]
[1645953224399,1.34326373,2752.9,2752.5,0.75914698]
[1645953224803,0.525,2753.2,2753.0,0.08978103]
[1645953225099,0.00096,2753.1,2753.0,0.08978103]
[1645953225300,0.5,2753.2,2753.0,0.08978103]
[1645953225498,0.14616,2753.7,2753.0,0.08978103]
[1645953225702,0.14616,2753.7,2753.5,0.05]
[1645953225703,0.00096,2753.7,2753.5,0.05]
[1645953225901,0.00096,2754.3,2753.5,0.05]
[1645953226197,2.21625807,2754.6,2753.5,0.05]
[1645953226198,2.21721807,2754.6,2753.5,0.05]
[1645953226399,2.21721807,2754.6,2754.2,0.05]
[1645953226598,2.21625807,2754.6,2754.2,0.05]
[1645953226833,2.21625807,2754.6,2753.9,5.01424219]
[1645953227039,0.04035807,2754.6,2754.4,0.05]
[1645953227237,0.00096,2755.3,2754.4,0.05]
[1645953227453,3.7256854,2755.4,2755.2,0.05]
[1645953227644,2.3896,2756.8,2755.2,0.05]
[1645953227645,1.86699,2757.1,2755.2,0.95725]
[1645953227841,2.63382858,2757.1,2755.4,7.0]
[1645953228042,0.00096,2757.0,2756.5,0.05]
[1645953228245,2.18286858,2757.1,2756.6,0.525]
[1645953228246,0.00616858,2757.1,2756.6,0.525]
[1645953228542,1.04846032,2757.2,2756.7,0.525]
[1645953228749,1.04846032,2757.2,2756.0,2.02219865]
[1645953228750,1.04846032,2757.2,2756.5,0.475]
[1645953228941,0.79336032,2757.2,2755.8,0.17876236]
[1645953229143,4.95,2756.6,2755.2,0.25]
[1645953229340,0.00096,2756.5,2754.3,0.05]
[1645953229541,0.1451,2756.4,2754.4,0.19338592]
[1645953229842,0.01305049,2756.3,2754.8,0.25]
[1645953230149,0.00096,2756.5,2754.7,0.27278024]
[1645953230340,0.00096,2756.7,2754.8,0.1449]
[1645953230593,0.525,2757.0,2754.8,0.1449]
[1645953230594,1.2078909,2755.4,2754.8,0.1449]
[1645953230794,1.2078909,2755.4,2754.5,0.06255005]
[1645953230993,0.525,2756.4,2754.4,0.15211373]
[1645953231203,0.00096,2755.3,2754.8,0.05]
[1645953231400,2.26736,2756.3,2754.8,0.525]
[1645953231595,2.2664,2756.3,2755.2,0.05]
[1645953231797,0.00096,2756.2,2755.1,0.03676028]
[1645953231995,0.00096,2756.2,2755.8,1.06445962]
[1645953232196,2.2664,2756.3,2755.7,0.05]
[1645953232396,0.00096,2756.2,2755.7,0.05]
[1645953232596,2.2664,2756.3,2756.0,0.05]
[1645953232799,0.00096,2756.2,2756.0,0.05]
[1645953232995,2.2664,2756.3,2755.5,4.8]
[1645953233297,0.00096,2756.2,2755.8,0.16267803]
[1645953233497,0.00096,2757.3,2755.8,3.80747803]
[1645953233700,0.00096,2757.3,2756.8,0.05]
[1645953233898,0.00096,2757.5,2756.3,0.1948]
[1645953234100,0.00096,2757.5,2756.3,0.1448]
[1645953234101,4.95,2757.1,2756.3,0.1448]
[1645953234365,4.95,2757.1,2756.2,0.0008]
[1645953234366,0.525,2757.1,2756.2,0.0008]
[1645953234567,5.09606,2757.0,2756.2,0.0008]
[1645953234764,4.95,2756.8,2756.2,0.0008]
[1645953235064,5.25,2756.8,2756.2,0.0008]
[1645953235263,1.54427028,2756.7,2756.2,0.0008]
[1645953236164,1.39917028,2756.7,2756.2,0.0008]
[1645953236766,4.95,2756.5,2756.2,0.0008]
[1645953236967,3.5,2756.6,2756.2,0.0008]
[1645953236968,4.95,2756.3,2756.2,0.0008]
[1645953237169,4.9,2756.3,2756.2,0.0008]
[1645953237369,0.1451,2756.3,2756.2,0.0008]
[1645953237566,2.1913,2756.4,2756.2,0.0008]
[1645953238786,1.8913,2756.4,2756.2,0.0008]
[1645953240890,1.1616,2757.3,2756.2,0.0008]
[1645953240891,0.00096,2757.2,2756.2,0.0008]
[1645953241093,2.05156,2757.2,2756.2,0.0008]
[1645953241290,2.0506,2757.2,2756.2,0.0008]
[1645953241495,3.50096,2757.1,2756.2,0.0008]
[1645953241940,8.40096,2757.1,2756.2,0.0008]
[1645953242139,0.3643,2757.0,2756.2,0.0008]
[1645953242337,0.3643,2756.8,2756.2,0.0008]
[1645953242538,1.42076202,2756.5,2756.2,0.0008]
[1645953243744,5.43839377,2757.2,2756.2,0.0008]
[1645953243745,0.00096,2756.8,2756.2,0.0008]
[1645953243945,0.00096,2757.0,2756.2,0.5258]
[1645953244143,2.2428,2757.2,2756.9,0.1]
[1645953244339,0.00096,2757.1,2757.0,0.1449]
[1645953244540,0.00096,2757.7,2757.0,11.2649]
[1645953244740,0.000801,2758.0,2757.4,1.33971414]
[1645953244941,0.000801,2758.0,2757.2,0.1449]
[1645953244942,0.00096,2757.7,2757.2,0.1449]
[1645953245143,0.001761,2758.0,2757.2,0.1449]
[1645953245344,0.001761,2758.0,2757.1,1.1]
[1645953245584,0.3643,2757.7,2756.8,0.3]
[1645953245789,0.36526,2757.7,2756.5,0.1]
[1645953246183,0.36526,2757.7,2756.5,0.1449]
[1645953246184,1.20607217,2756.7,2756.5,0.1449]
[1645953246387,3.5,2756.6,2756.2,0.0008]
[1645953246587,5.6154,2756.6,2756.2,0.0008]
[1645953247188,7.0,2756.5,2755.3,0.16878693]
[1645953247397,5.0,2756.0,2754.9,0.25]
[1645953247595,4.3893,2755.9,2754.9,0.25]
[1645953247791,0.3643,2755.7,2754.0,0.1451]
[1645953247989,0.3643,2755.5,2754.0,0.1451]
[1645953248188,1.42059811,2754.6,2754.0,1.42781778]
[1645953248395,0.525,2755.3,2754.0,12.75460502]
[1645953248593,0.00096,2755.2,2754.0,12.75460502]
[1645953248790,0.00096,2755.3,2754.0,12.75460502]
[1645953248989,0.00096,2755.3,2754.5,0.3643]
[1645953249224,0.5,2756.0,2754.5,0.3643]
[1645953249225,0.5,2756.0,2754.9,11.4843]
[1645953249426,0.00096,2755.3,2755.2,13.2985043]
[1645953249630,0.5,2756.0,2755.8,11.12]
[1645953249824,0.00096,2755.9,2755.8,12.61348137]
[1645953250025,0.36794,2757.0,2755.8,12.61348137]
[1645953250026,0.00096,2756.9,2756.0,11.4843]
[1645953250325,0.00096,2756.9,2756.0,1.3]
[1645953250528,1.04068272,2757.0,2756.1,0.20978849]
[1645953250726,1.04068272,2757.0,2756.0,0.3]
[1645953250938,0.00096,2756.9,2755.9,0.3]
[1645953251128,0.00096,2756.9,2755.6,0.51657663]
[1645953251129,0.00096,2756.9,2756.0,0.16772607]
[1645953251729,0.00096,2756.9,2756.2,1.09157409]
[1645953251929,0.00096,2756.9,2756.2,0.93637409]
[1645953252330,0.00096,2756.9,2756.2,12.05637409]
[1645953252636,0.00096,2757.1,2756.3,0.1619288]
[1645953252830,0.5,2757.2,2756.3,0.1619288]
[1645953252831,0.00096,2757.2,2756.3,0.1619288]
[1645953253092,0.00096,2757.3,2756.8,1.20144827]
[1645953253294,0.5,2757.8,2757.2,5.0]
[1645953253499,0.5,2757.8,2757.6,0.01294303]
[1645953253692,39.58492467,2757.8,2757.6,0.44894303]
[1645953253895,39.58492467,2757.8,2757.7,18.3724]
[1645953254393,0.00096,2758.8,2757.9,6.0]
[1645953254595,0.00588855,2759.0,2758.1,0.3643]
[1645953254793,0.00492855,2759.0,2758.4,11.12]
[1645953254993,0.00492855,2759.0,2758.4,14.7359946]
[1645953255193,0.00492855,2759.0,2758.4,10.8216946]
[1645953255396,0.00492855,2759.0,2758.5,3.5]
[1645953255595,0.00492855,2759.0,2758.5,14.36803324]
[1645953255796,0.11584067,2759.6,2759.0,0.3643]
[1645953255999,0.11584067,2759.6,2759.3,11.0291]
[1645953256193,0.11584067,2759.6,2759.4,0.16517013]
[1645953256392,0.01584067,2759.6,2759.4,0.06517013]
[1645953256591,0.01584067,2759.6,2759.3,0.3]
[1645953256833,0.01584067,2759.6,2759.1,0.90588]
[1645953257029,0.01584067,2759.6,2759.1,0.16748642]
[1645953257231,0.01584067,2759.6,2758.9,0.3646]
[1645953257432,0.00096,2759.9,2758.9,0.3646]
[1645953257632,1.12140418,2759.1,2758.9,0.3646]
[1645953257831,1.62140418,2759.1,2758.9,0.3646]
[1645953258032,3.9601,2759.0,2758.4,0.19355933]
[1645953258230,3.9601,2759.0,2757.7,7.5024]
[1645953258438,0.00096,2758.9,2758.0,0.00141023]
[1645953258650,0.00096,2758.9,2757.7,7.5024]
[1645953258651,0.5,2758.5,2757.7,7.5024]
[1645953258831,3.5,2758.4,2757.7,7.2524]
[1645953259634,1.29520204,2757.8,2757.7,7.2524]
[1645953260033,0.36526,2758.3,2757.7,7.2524]
[1645953260034,3.5,2758.2,2757.7,7.2524]
[1645953260486,0.36526,2758.3,2757.7,7.2524]
[1645953260487,0.00096,2758.3,2757.7,7.2524]
[1645953260680,0.3643,2758.9,2757.7,7.2524]
[1645953260681,0.00096,2758.6,2757.7,7.2524]
[1645953260883,0.00096,2758.4,2757.7,7.2524]
[1645953261083,1.28501735,2758.3,2757.7,7.2524]
[1645953261486,0.3643,2758.2,2757.7,7.2524]
[1645953261783,1.28501735,2758.3,2757.7,7.2524]
[1645953262185,1.28553325,2757.8,2757.7,7.2524]
[1645953262984,4.105,2759.0,2757.7,7.2524]
[1645953262985,0.00096,2758.4,2757.7,7.2524]
[1645953263185,0.00096,2758.9,2757.7,7.2524]
[1645953263586,0.36526,2758.9,2757.7,7.2524]
[1645953263985,1.35103839,2757.8,2757.7,7.2524]
[1645953265337,1.71533839,2757.8,2757.7,7.2524]
[1645953265835,1.35103839,2757.8,2757.7,7.2524]
[1645953266236,1.13446,2758.8,2757.7,18.3724]
[1645953266445,1.13446,2758.8,2757.8,11.12]
[1645953266844,1.49876,2758.8,2757.7,7.5524]
[1645953267143,1.49876,2758.8,2757.7,7.2524]
[1645953267144,1.36369551,2758.0,2757.7,7.2524]
[1645953267539,3.6402,2757.9,2757.7,7.2524]
[1645953270383,4.0045,2757.9,2757.7,7.2524]
[1645953271181,3.6402,2757.9,2757.7,7.2524]
[1645953274443,2.00559964,2757.9,2757.7,7.2524]
[1645953277078,0.012433,2757.8,2757.7,7.2524]
[1645953277881,0.012433,2757.8,2757.7,7.0024]
[1645953281643,1.35336802,2757.8,2757.7,7.0024]
[1645953282049,0.012433,2757.8,2757.7,7.0024]
[1645953283476,1.03330861,2757.8,2757.7,7.0024]
[1645953283775,0.012433,2757.8,2757.7,7.0024]
[1645953285386,0.012433,2757.8,2757.7,10.8024]
[1645953285583,0.012433,2757.8,2757.7,23.49766868]
[1645953285782,3.3e-05,2757.8,2757.7,24.46877484]
[1645953287242,3.3e-05,2757.8,2757.7,20.96877484]
[1645953287839,3.3e-05,2757.8,2757.7,21.50709411]
[1645953288339,3.3e-05,2757.8,2757.7,21.68717519]
[1645953289140,3.3e-05,2757.8,2757.7,21.50709411]
[1645953289543,3.3e-05,2757.8,2757.7,21.14279411]
[1645953289743,3.3e-05,2757.8,2757.7,21.50709411]
[1645953289940,3.3e-05,2757.8,2757.7,10.02279411]
[1645953290241,3.097433,2758.5,2757.7,21.18090709]
[1645953290488,0.00096,2758.7,2757.9,0.3643]
[1645953290705,0.00096,2759.0,2758.0,4.51109214]
[1645953290891,0.00096,2759.0,2758.1,0.436]
[1645953291089,1.27223862,2758.7,2758.1,0.436]
[1645953291489,0.00096,2759.0,2758.1,0.436]
[1645953292693,1.44485694,2758.7,2758.1,0.436]
[1645953293498,0.00096,2759.0,2758.1,11.556]
[1645953293701,0.93544948,2759.0,2758.2,0.57765888]
[1645953294326,0.93544948,2759.0,2758.3,3.5]
[1645953294527,0.93544948,2759.0,2758.2,1.01365888]
[1645953294528,0.93448948,2759.0,2758.2,1.01365888]
[1645953294734,0.93448948,2759.0,2758.3,0.57765888]
[1645953294735,1.14513286,2758.6,2758.3,0.57765888]
[1645953294930,0.26269623,2758.6,2758.3,0.57765888]
[1645953295732,0.26269623,2758.6,2758.0,0.436]
[1645953295934,0.00096,2758.9,2758.1,0.56176515]
[1645953296935,0.67136817,2758.9,2758.2,0.56176515]
[1645953297234,0.67136817,2758.9,2757.7,8.0024]
[1645953297441,1.31633051,2758.8,2757.8,0.56260879]
[1645953297634,1.31729051,2758.7,2757.8,0.56260879]
[1645953297839,0.95203051,2758.6,2757.8,0.56260879]
[1645953298092,0.95299051,2758.6,2757.8,0.56260879]
[1645953298291,1.10126497,2758.2,2757.8,0.56260879]
[1645953298993,0.95356987,2758.1,2757.8,0.56260879]
[1645953299998,0.00096,2758.6,2757.8,0.56260879]
[1645953300195,0.3643,2758.5,2757.8,0.56260879]
[1645953300393,1.31791633,2758.4,2757.8,0.56260879]
[1645953300594,1.31791633,2758.3,2757.8,0.56260879]
[1645953300795,0.95361633,2758.2,2757.8,0.56260879]
[1645953300996,1.31887633,2758.4,2757.8,0.56260879]
[1645953301195,1.20047287,2758.2,2757.8,0.56260879]
[1645953301832,0.3643,2758.4,2757.8,0.56260879]
[1645953302036,0.95356228,2758.3,2757.8,0.56260879]
[1645953302232,0.3643,2758.6,2757.8,0.56260879]
[1645953302435,0.95407008,2758.5,2757.8,4.06260879]
[1645953302643,0.95407008,2758.5,2757.9,4.06260879]
[1645953302835,0.95407008,2758.5,2758.0,0.56260879]
[1645953302836,0.00096,2758.5,2758.0,0.56260879]
[1645953303038,0.95500469,2758.7,2758.2,1.06609138]
[1645953303233,0.95404469,2758.7,2758.3,0.56260879]
[1645953303735,0.95404469,2758.7,2758.4,0.56260879]
[1645953304036,0.95500469,2758.7,2758.0,0.1449]
[1645953304237,0.95500469,2758.7,2758.1,0.56272495]
[1645953304535,0.95404469,2758.7,2758.1,0.56272495]
[1645953304736,0.95404469,2758.7,2758.2,0.56272495]
[1645953304737,0.3643,2758.6,2758.2,0.56272495]
[1645953305036,0.95404469,2758.5,2758.3,0.56272495]
[1645953305244,0.95395306,2758.4,2757.7,7.0024]
[1645953305487,1.20416,2758.8,2757.8,0.56290227]
[1645953305488,0.95395306,2758.3,2757.8,0.56290227]
[1645953305691,0.3643,2758.7,2757.8,0.56290227]
[1645953305891,0.3643,2758.5,2757.8,0.56290227]
[1645953306091,0.95393683,2758.4,2757.8,0.56290227]
[1645953306293,0.95393683,2758.3,2757.8,0.56290227]
[1645953306494,0.95393683,2758.2,2757.8,0.56290227]
[1645953306799,1.31823683,2758.1,2757.8,0.56290227]
[1645953306998,0.3643,2758.1,2757.8,0.56290227]
[1645953307599,1.318412,2758.0,2757.8,0.56290227]
[1645953307803,0.3643,2758.0,2757.8,0.56290227]
[1645953308200,1.31842754,2757.9,2757.8,0.56290227]
[1645953308400,1.31842754,2757.9,2757.7,7.0024]
[1645953308700,0.67040817,2758.4,2757.7,7.0024]
[1645953308701,2.53503189,2757.8,2757.7,7.0024]
[1645953308899,2.53503189,2757.8,2757.7,7.56583439]
[1645953309338,2.53503189,2757.8,2757.7,13.80257015]
[1645953310739,0.36526,2758.3,2757.7,13.80257015]
[1645953310943,1.31839473,2758.2,2757.8,4.06343439]
[1645953311140,1.31839473,2758.2,2757.7,13.23913576]
[1645953311141,1.31839473,2758.1,2757.9,0.56343439]
[1645953311441,1.2096,2758.4,2757.7,13.23913576]
[1645953311442,1.31839473,2758.0,2757.7,13.23913576]
[1645953311642,1.31839473,2757.9,2757.8,0.56341525]
[1645953312244,1.31839473,2757.9,2757.8,0.11011525]
[1645953312445,4.81839473,2757.9,2757.8,0.11011525]
[1645953312644,1.31839473,2757.9,2757.8,0.11011525]
[1645953313387,1.31839473,2757.9,2757.7,13.23913576]
[1645953313686,0.3643,2757.9,2757.7,13.23913576]
[1645953314286,0.3643,2757.9,2757.7,6.5491]
[1645953314487,0.3643,2757.9,2757.8,6.69003576]
[1645953315085,0.3643,2757.9,2757.8,6.23673576]
[1645953316187,0.3643,2757.9,2757.8,4.60202989]
[1645953316188,3.8643,2757.9,2757.8,4.60202989]
[1645953316386,0.3643,2757.9,2757.8,4.60202989]
[1645953316848,0.3643,2757.6,2756.8,0.25]
[1645953317050,4.5,2757.7,2756.7,7.36]
[1645953317051,1.21030071,2756.9,2756.7,7.36]
[1645953317451,1.21030071,2756.9,2756.5,0.145]
[1645953317646,0.3643,2756.8,2756.3,0.66181024]
[1645953317848,1.21030071,2756.9,2756.2,0.80691024]
[1645953318050,1.21030071,2756.9,2756.3,0.20851024]
[1645953318246,0.3643,2756.8,2756.2,0.20851024]
[1645953318446,0.3643,2756.8,2756.1,2.98718497]
[1645953318648,1.21030071,2756.9,2756.1,2.84208497]
[1645953318649,0.3643,2756.6,2756.1,2.84208497]
[1645953318848,0.3643,2756.4,2755.8,7.36]
[1645953319050,0.3643,2756.2,2755.4,0.25]
[1645953319247,0.3643,2756.0,2755.3,0.00084694]
[1645953319450,3.936,2756.1,2755.3,0.00084694]
[1645953319451,0.3643,2755.8,2755.3,0.00084694]
[1645953319648,0.3643,2755.6,2755.3,0.00084694]
[1645953319847,0.3643,2755.5,2754.5,0.25]
[1645953320047,3.1043,2755.7,2754.4,0.87826439]
[1645953320250,3.1043,2755.7,2754.8,0.87826439]
[1645953320489,1.09205683,2755.3,2754.5,0.87826439]
[1645953320793,1.09205683,2755.3,2754.4,0.87826439]
[1645953321191,1.45635683,2755.3,2754.5,0.1451]
[1645953321396,0.71530712,2755.3,2754.4,0.1451]
[1645953321797,0.71530712,2755.3,2754.3,0.1451]
[1645953322194,0.3643,2755.2,2754.3,0.1451]
[1645953322596,0.3643,2755.1,2754.2,1.1452]
[1645953322795,1.708758,2754.7,2754.2,0.1452]
[1645953322994,1.344458,2754.7,2754.2,0.1452]
[1645953323197,0.3643,2754.5,2754.1,0.1452]
[1645953323400,0.3643,2754.5,2753.9,0.25]
[1645953323602,3.259,2754.6,2753.5,0.1452]
[1645953323603,0.3643,2754.3,2753.5,0.1452]
[1645953323794,1.38381504,2753.9,2753.5,0.1452]
[1645953325740,1.2264,2754.4,2753.5,0.1452]
[1645953325946,1.2264,2754.4,2753.6,11.4843]
[1645953326140,1.2264,2754.4,2753.7,3.6452]
[1645953326340,1.2264,2754.4,2753.7,4.6452]
[1645953326739,3.259,2754.6,2753.9,11.4843]
[1645953326941,3.259,2754.6,2754.1,0.3643]
[1645953327140,2.2659,2755.4,2754.3,0.3643]
[1645953327340,3.1298,2755.3,2754.4,3.5]
[1645953327743,3.1298,2755.3,2754.4,4.5]
[1645953327981,3.1298,2755.3,2754.8,1.31779092]
[1645953327982,4.21652682,2755.3,2754.8,1.31779092]
[1645953328182,4.21652682,2755.3,2754.4,4.5]
[1645953328382,3.1298,2755.3,2754.4,3.5]
[1645953328588,3.1298,2755.3,2754.4,4.4739]
[1645953328785,3.1298,2755.3,2754.4,4.8382]
[1645953328987,2.9723,2756.2,2754.5,11.80948108]
[1645953329283,4.217,2756.1,2754.7,0.3643]
[1645953329484,1.42184189,2755.9,2755.4,1.08757861]
[1645953329682,1.42184189,2755.9,2754.8,3.6451]
[1645953329889,1.42184189,2755.9,2754.8,1.1451]
[1645953330089,1.42184189,2755.9,2754.8,0.5463]
[1645953330090,0.3643,2755.8,2754.8,0.5463]
[1645953330284,0.3643,2755.8,2754.4,5.61488]